bitfinex-derivatives/quotes_SOLF0:USTF0_20230902
["timestamp","ask_amount","ask_price","bid_price","bid_amount"]
[1693673687703,111.25,19.46,19.459,0.06209373]
[1693673697108,111.25,19.462,19.459,0.06209373]
[1693673697502,111.25,19.465,19.459,0.06209373]
[1693673697708,111.25,19.468,19.459,111.31209373]
[1693673701609,111.25,19.468,19.459,111.25]
[1693673702813,111.25,19.468,19.459,111.31209373]
[1693673705207,15.41,19.467,19.459,111.31209373]
[1693673706917,15.41,19.467,19.459,152.90552288]
[1693673710416,15.41,19.47,19.463,111.25]
[1693673712020,15.41,19.47,19.459,41.65552288]
[1693673712021,111.25,19.47,19.462,111.25]
[1693673732043,111.25,19.47,19.461,111.25]
[1693673738738,15.41,19.473,19.459,10.28209373]
[1693673738739,111.25,19.473,19.465,111.25]
[1693673739044,0.45454546,19.475,19.468,111.25]
[1693673743942,0.45454546,19.475,19.466,10.22]
[1693673744247,75.53024162,19.544,19.465,500.0]
[1693673744248,15.41,19.48,19.474,10.22]
[1693673745044,15.41,19.48,19.473,111.25]
[1693673746642,111.25,19.482,19.474,111.25]
[1693673752052,111.25,19.483,19.475,111.25]
[1693673762266,111.25,19.483,19.471,40.68547973]
[1693673762267,111.25,19.48,19.471,151.93547973]
[1693673762566,111.25,19.48,19.471,111.25]
[1693673764566,15.4,19.476,19.468,111.25]
[1693673764766,15.4,19.473,19.466,111.25]
[1693673764973,15.4,19.47,19.462,111.25]
[1693673771975,111.25,19.47,19.461,111.25]
[1693673774572,111.25,19.467,19.46,21.7861]
[1693673777185,15.4,19.462,19.456,111.25]
[1693673777575,15.4,19.462,19.459,0.06209373]
[1693673785388,126.65,19.46,19.459,0.06209373]
[1693673788681,111.25,19.46,19.459,0.06209373]
[1693673789492,111.25,19.463,19.459,0.06209373]
[1693673790987,15.42,19.462,19.459,0.06209373]
[1693673791885,15.42,19.462,19.455,121.47]
[1693673792786,15.42,19.462,19.459,0.06209372]
[1693673802290,111.25,19.463,19.459,0.06209372]
[1693673802492,15.42,19.467,19.459,0.06209372]
[1693673802493,111.25,19.467,19.459,111.31209372]
[1693673803693,111.25,19.465,19.459,0.06209372]
[1693673807995,111.25,19.465,19.457,111.25]
[1693673809102,111.25,19.465,19.459,0.06209372]
[1693673812105,111.25,19.467,19.459,111.31209372]
[1693673817308,111.25,19.464,19.459,0.06209372]
[1693673818012,111.25,19.461,19.459,0.06209372]
[1693673822407,111.25,19.461,19.455,10.22]
[1693673823611,111.25,19.461,19.459,0.06209372]
[1693673825010,15.42,19.46,19.459,0.06209372]
[1693673825206,111.25,19.46,19.459,0.06209372]
[1693673826308,111.25,19.46,19.452,40.14791986]
[1693673826309,111.25,19.46,19.451,111.25]
[1693673826508,111.25,19.456,19.449,10.22]
[1693673829117,111.25,19.456,19.448,111.25]
[1693673831913,111.25,19.456,19.446,22.1054]
[1693673832119,111.25,19.453,19.447,9.21681648]
[1693673834415,111.25,19.45,19.442,111.25]
[1693673834616,111.25,19.45,19.443,9.21855836]
[1693673834920,111.25,19.449,19.443,9.21855836]
[1693673835121,15.42,19.448,19.443,9.21855836]
[1693673835425,111.25,19.446,19.438,111.25]
[1693673835726,111.25,19.446,19.44,10.22]
[1693673835922,111.25,19.446,19.438,152.64702104]
[1693673836126,111.25,19.446,19.44,10.22]
[1693673836322,111.25,19.446,19.438,152.64702104]
[1693673836518,111.25,19.446,19.44,10.22]
[1693673836723,17.69614546,19.455,19.441,9.22092123]
[1693673836724,111.25,19.445,19.441,9.22092123]
[1693673836931,111.25,19.445,19.442,9.22092123]
[1693673837228,111.25,19.445,19.443,9.22092123]
[1693673837417,111.25,19.445,19.438,41.39702104]
[1693673837622,111.25,19.445,19.44,10.22]
[1693673837924,111.25,19.445,19.442,10.22]
[1693673838120,111.25,19.445,19.443,9.21908046]
[1693673838324,111.25,19.445,19.437,111.25]
[1693673838527,111.25,19.445,19.438,9.2188892]
[1693673839129,111.25,19.448,19.44,111.25]
[1693673839425,111.25,19.448,19.442,10.22]
[1693673839731,111.25,19.448,19.443,9.2188892]
[1693673839926,111.25,19.448,19.44,111.25]
[1693673840128,111.25,19.448,19.442,10.22]
[1693673840323,111.25,19.448,19.443,9.21882928]
[1693673840528,111.25,19.448,19.44,111.25]
[1693673840728,111.25,19.448,19.441,9.21881395]
[1693673841229,111.25,19.448,19.442,10.22]
[1693673841529,111.25,19.448,19.443,9.21881395]
[1693673841732,111.25,19.448,19.44,111.25]
[1693673841931,17.69614546,19.455,19.438,90.03322479]
[1693673841932,111.25,19.447,19.442,10.22]
[1693673842126,111.25,19.447,19.443,9.21877554]
[1693673842324,111.25,19.447,19.438,201.28322479]
[1693673842524,111.25,19.447,19.44,10.22]
[1693673842733,111.25,19.447,19.442,10.22]
[1693673842934,111.25,19.447,19.443,9.21879449]
[1693673843129,111.25,19.447,19.438,201.28322479]
[1693673843334,111.25,19.447,19.44,10.22]
[1693673843534,111.25,19.447,19.442,10.22]
[1693673843735,111.25,19.447,19.443,9.21876745]
[1693673844031,111.25,19.447,19.438,201.28322479]
[1693673844334,111.25,19.447,19.44,10.22]
[1693673844534,111.25,19.449,19.442,10.22]
[1693673844731,111.25,19.449,19.443,9.21873657]
[1693673863848,111.25,19.449,19.442,10.22]
[1693673865053,15.42,19.448,19.441,111.25]
[1693673865256,111.25,19.446,19.442,9.21868444]
[1693673865554,111.25,19.446,19.438,111.25]
[1693673865751,111.25,19.446,19.44,10.23]
[1693673866056,111.25,19.446,19.441,9.21869865]
[1693673866254,111.25,19.446,19.442,9.21869865]
[1693673866448,111.25,19.446,19.438,111.25]
[1693673866645,111.25,19.446,19.44,10.23]
[1693673866844,111.25,19.446,19.441,9.21869293]
[1693673867049,111.25,19.446,19.442,9.21869293]
[1693673867348,15.42,19.445,19.438,111.25]
[1693673867543,15.42,19.445,19.439,9.22150298]
[1693673867544,111.25,19.443,19.439,9.22150298]
[1693673867754,111.25,19.443,19.435,132.3461]
[1693673868058,111.25,19.443,19.436,9.22143538]
[1693673869450,111.25,19.446,19.438,111.25]
[1693673869655,111.25,19.446,19.44,10.23]
[1693673869955,111.25,19.446,19.442,10.23]
[1693673870156,111.25,19.446,19.438,111.25]
[1693673870356,111.25,19.446,19.44,10.23]
[1693673870655,111.25,19.446,19.439,9.21929762]
[1693673870656,111.25,19.446,19.442,10.23]
[1693673870856,111.25,19.446,19.438,111.25]
[1693673871056,111.25,19.446,19.44,10.23]
[1693673871252,111.25,19.446,19.442,10.23]
[1693673871457,111.25,19.446,19.438,111.25]
[1693673871660,111.25,19.446,19.44,10.23]
[1693673871861,111.25,19.446,19.439,9.21919805]
[1693673871862,111.25,19.446,19.442,10.23]
[1693673872049,111.25,19.445,19.437,111.25]
[1693673872254,111.25,19.445,19.438,9.21916377]
[1693673875155,111.25,19.448,19.44,111.25]
[1693673875363,111.25,19.448,19.442,10.23]
[1693673875664,111.25,19.448,19.44,111.25]
[1693673875965,111.25,19.448,19.442,10.23]
[1693673876263,111.25,19.448,19.44,111.25]
[1693673876462,111.25,19.448,19.442,10.23]
[1693673876662,111.25,19.448,19.443,9.21899633]
[1693673876964,111.25,19.448,19.44,111.25]
[1693673877264,111.25,19.448,19.442,10.23]
[1693673877565,111.25,19.45,19.443,111.25]
[1693673884064,15.87454546,19.453,19.435,21.0961]
[1693673884065,111.70454546,19.453,19.446,111.25]
[1693673884371,111.25,19.453,19.446,111.25]
[1693673887669,111.25,19.453,19.447,9.21571425]
[1693673892075,111.25,19.455,19.449,10.23]
[1693673896973,15.42,19.456,19.449,111.25]
[1693673907483,15.42,19.456,19.449,152.55318601]
[1693673911584,111.25,19.457,19.449,152.55318601]
[1693673912190,111.25,19.461,19.453,111.25]
[1693673914390,111.25,19.464,19.456,111.25]
[1693673914588,111.25,19.467,19.459,111.31209371]
[1693673921292,15.42,19.467,19.461,111.25]
[1693673932003,15.42,19.467,19.459,10.29209371]
[1693673932004,111.25,19.47,19.463,111.25]
[1693673942211,111.25,19.469,19.461,111.25]
[1693673951917,15.41,19.47,19.463,111.25]
[1693673957128,126.66,19.47,19.462,111.25]
[1693673961926,15.41,19.47,19.462,111.25]
[1693673962231,111.25,19.469,19.462,111.25]
[1693673981940,111.25,19.467,19.46,111.25]
[1693673983851,15.41,19.47,19.464,111.25]
[1693673990854,111.25,19.473,19.466,111.25]
[1693673991654,0.45454546,19.474,19.469,111.25]
[1693673991855,0.45454546,19.475,19.469,111.25]
[1693673996953,111.25,19.476,19.469,111.25]
[1693674004160,111.25,19.473,19.466,111.25]
[1693674005362,111.25,19.475,19.468,111.25]
[1693674005559,111.25,19.472,19.465,111.25]
[1693674007862,111.25,19.472,19.466,10.21]
[1693674009263,111.25,19.472,19.465,111.25]
[1693674009958,15.4,19.465,19.451,111.25]
[1693674010155,111.25,19.46,19.451,121.46]
[1693674018769,111.25,19.46,19.459,0.06209371]
[1693674041990,15.42,19.46,19.459,0.06209371]
[1693674043590,111.25,19.461,19.459,0.06209371]
[1693674043791,15.42,19.46,19.459,0.06209371]
[1693674046499,111.25,19.46,19.459,0.06209371]
[1693674046896,127.12454546,19.46,19.45,20.6386]
[1693674047092,111.25,19.455,19.45,20.6386]
[1693674047495,15.42,19.453,19.45,20.6386]
[1693674047794,15.42,19.453,19.446,111.25]
[1693674047989,15.42,19.453,19.447,21.2742]
[1693674049389,111.25,19.449,19.447,21.2742]
[1693674055802,111.25,19.453,19.447,21.2742]
[1693674056003,111.25,19.453,19.445,111.25]
[1693674056201,111.25,19.453,19.446,21.3852]
[1693674062007,111.25,19.455,19.449,10.22]
[1693674064299,111.70454546,19.459,19.451,111.25]
[1693674064505,111.25,19.459,19.451,111.25]
[1693674071914,111.25,19.46,19.452,111.25]
[1693674072312,111.25,19.46,19.453,20.5388]
[1693674077617,111.25,19.46,19.459,0.06209369]
[1693674080608,111.25,19.463,19.459,0.06209369]
[1693674081207,111.25,19.465,19.459,10.29209369]
[1693674085921,111.25,19.46,19.459,0.06209369]
[1693674091421,111.25,19.46,19.453,131.7888]
[1693674091719,0.45454546,19.469,19.453,20.5388]
[1693674091720,111.25,19.457,19.453,20.5388]
[1693674091922,111.25,19.456,19.453,20.5388]
[1693674107730,111.25,19.457,19.453,20.5388]
[1693674111337,111.25,19.46,19.453,20.5388]
[1693674119033,15.42,19.47,19.453,20.5388]
[1693674119337,111.25,19.465,19.457,111.25]
[1693674121936,111.25,19.467,19.459,111.25]
[1693674122140,0.45454546,19.466,19.459,111.25]
[1693674123541,0.45454546,19.466,19.46,21.0646]
[1693674127036,15.42,19.465,19.46,21.0646]
[1693674130640,15.42,19.465,19.459,111.25]
[1693674131044,111.25,19.464,19.456,111.25]
[1693674131446,111.25,19.461,19.455,10.22]
[1693674132645,111.25,19.464,19.456,111.25]
[1693674137551,111.25,19.464,19.459,0.06209369]
[1693674162169,111.25,19.465,19.459,0.06209369]
[1693674166777,111.25,19.465,19.456,111.25]
[1693674167579,111.25,19.465,19.459,0.06209369]
[1693674167981,15.41,19.465,19.459,111.31209369]
[1693674178789,111.25,19.466,19.459,111.31209369]
[1693674179094,29.4665074,19.468,19.462,111.25]
[1693674180284,111.25,19.473,19.465,111.25]
[1693674181989,15.41,19.473,19.466,111.25]
[1693674191502,15.41,19.473,19.467,20.4047]
[1693674191801,111.25,19.474,19.467,20.4047]
[1693674192000,111.25,19.474,19.467,131.6547]
[1693674194793,15.41,19.473,19.467,131.6547]
[1693674195195,15.41,19.47,19.467,20.4047]
[1693674196001,111.25,19.471,19.467,20.4047]
[1693674200801,111.25,19.473,19.467,20.4047]
[1693674202005,15.41,19.473,19.467,20.4047]
[1693674223526,15.41,19.473,19.466,111.25]
[1693674223832,15.41,19.47,19.464,111.25]
[1693674227932,0.77927211,19.469,19.464,111.25]
[1693674241943,0.77927211,19.469,19.463,111.25]
[1693674251550,111.25,19.467,19.462,21.0117]
[1693674251848,111.25,19.464,19.462,21.0117]
[1693674252251,111.25,19.464,19.459,0.06209369]
[1693674256748,111.25,19.464,19.457,111.25]
[1693674257754,111.25,19.464,19.459,0.06209369]
[1693674258152,111.25,19.462,19.459,0.06209369]
[1693674258349,111.25,19.465,19.459,0.06209369]
[1693674261958,111.25,19.466,19.459,10.28209369]
[1693674262956,111.25,19.472,19.464,111.25]
[1693674263454,111.25,19.472,19.466,10.22]
[1693674266662,111.25,19.475,19.467,111.25]
[1693674272164,111.25,19.477,19.469,111.25]
[1693674276869,141.07527306,19.48,19.472,111.25]
[1693674277368,141.07527306,19.48,19.473,21.5722]
[1693674277668,141.07527306,19.48,19.474,10.21]
[1693674282070,29.82527306,19.48,19.474,121.46]
[1693674288272,29.82527306,19.48,19.476,111.25]
[1693674294180,29.82527306,19.48,19.478,111.25]
[1693674296278,41.9476117,19.484,19.478,111.25]
[1693674296479,111.25,19.485,19.478,111.25]
[1693674297181,151.82905543,19.485,19.478,111.25]
[1693674299480,111.25,19.488,19.481,111.25]
[1693674299879,126.65,19.488,19.481,111.25]
[1693674302077,15.4,19.488,19.482,111.25]
[1693674307783,40.92355053,19.49,19.485,111.25]
[1693674307983,111.25,19.493,19.485,111.25]
[1693674308978,111.25,19.495,19.487,111.25]
[1693674320194,111.25,19.493,19.485,111.25]
[1693674321992,15.4,19.491,19.484,111.25]
[1693674324195,15.4,19.491,19.483,111.25]
[1693674324395,111.25,19.491,19.483,111.25]
[1693674325988,111.25,19.488,19.481,21.1981]
[1693674326193,111.25,19.488,19.48,111.25]
[1693674331903,111.25,19.485,19.477,111.25]
[1693674332102,111.25,19.482,19.475,132.2725]
[1693674334595,111.25,19.479,19.475,21.0225]
[1693674335003,139.79608104,19.479,19.475,21.0225]
[1693674348614,15.4,19.476,19.475,21.0225]
[1693674348811,15.4,19.476,19.47,111.25]
[1693674349017,15.4,19.476,19.471,20.699]
[1693674365832,111.25,19.475,19.467,111.25]
[1693674366036,111.25,19.472,19.464,111.25]
[1693674372040,111.25,19.47,19.462,111.25]
[1693674380449,111.25,19.466,19.461,20.6547]
[1693674382049,111.25,19.467,19.461,20.6547]
[1693674389357,126.66,19.465,19.461,20.6547]
[1693674389656,111.70454546,19.465,19.461,20.6547]
[1693674389856,111.25,19.465,19.461,20.6547]
[1693674391359,126.66,19.465,19.461,20.6547]
[1693674391553,111.70454546,19.465,19.461,20.6547]
[1693674391758,111.25,19.465,19.461,20.6547]
[1693674391960,111.25,19.464,19.461,20.6547]
[1693674393464,111.25,19.464,19.459,0.06209367]
[1693674393763,111.25,19.46,19.459,0.06209367]
[1693674396967,111.25,19.463,19.459,0.06209367]
[1693674406675,111.25,19.463,19.455,111.25]
[1693674407579,111.25,19.463,19.459,0.06209367]
[1693674408673,15.41,19.465,19.459,0.06209367]
[1693674408674,111.25,19.462,19.459,0.06209367]
[1693674413382,111.25,19.465,19.459,0.06209367]
[1693674413579,111.25,19.468,19.46,111.25]
[1693674413978,111.25,19.468,19.461,20.3618]
[1693674423085,111.25,19.467,19.461,20.3618]
[1693674435201,111.25,19.467,19.464,25.64891762]
[1693674452110,111.25,19.466,19.464,25.64891762]
[1693674462018,15.41,19.476,19.464,25.64891762]
[1693674462019,111.25,19.465,19.464,25.64891762]
[1693674471624,111.25,19.469,19.464,25.64891762]
[1693674481932,111.25,19.468,19.464,25.64891762]
[1693674491941,111.25,19.466,19.464,25.64891762]
[1693674511555,15.41,19.473,19.464,25.64891762]
[1693674511857,111.25,19.466,19.464,25.64891762]
[1693674515064,15.41,19.473,19.464,25.64891762]
[1693674515261,111.25,19.466,19.464,25.64891762]
[1693674526571,15.41,19.465,19.464,25.64891762]
[1693674526868,111.25,19.466,19.464,25.64891762]
[1693674530562,111.25,19.465,19.464,1.762e-05]
[1693674530767,111.25,19.465,19.459,0.06209367]
[1693674530966,111.25,19.464,19.459,0.06209367]
[1693674532063,111.25,19.462,19.459,0.06209367]
[1693674534064,111.25,19.46,19.459,0.06209367]
[1693674534763,111.25,19.46,19.454,21.4244]
[1693674534963,111.25,19.455,19.454,21.4244]
[1693674535471,111.25,19.455,19.448,40.69029274]
[1693674535667,111.25,19.455,19.449,9.20873048]
[1693674535868,111.25,19.455,19.45,9.20873048]
[1693674536165,111.25,19.455,19.451,9.20873048]
[1693674536372,111.25,19.455,19.447,21.9434]
[1693674536569,111.25,19.455,19.448,9.20873926]
[1693674539066,111.25,19.452,19.448,9.20873926]
[1693674539268,111.25,19.452,19.447,21.9434]
[1693674540570,111.25,19.452,19.448,9.21115974]
[1693674542072,31.03873359,19.458,19.448,9.21115974]
[1693674542073,111.25,19.454,19.448,9.21115974]
[1693674551480,111.25,19.449,19.44,111.25]
[1693674551778,111.25,19.448,19.441,9.21281529]
[1693674551979,111.25,19.445,19.441,30.87881529]
[1693674552280,111.25,19.445,19.442,9.21281529]
[1693674561983,111.25,19.444,19.442,9.21281529]
[1693674562379,111.25,19.444,19.441,21.666]
[1693674562688,15.43,19.443,19.441,21.666]
[1693674569090,111.25,19.444,19.441,21.666]
[1693674569685,111.25,19.444,19.442,10.23]
[1693674569885,111.25,19.447,19.442,10.23]
[1693674575587,15.43,19.457,19.444,10.23]
[1693674575588,111.25,19.45,19.444,10.23]
[1693674580690,111.25,19.447,19.442,10.23]
[1693674584295,111.25,19.444,19.441,21.666]
[1693674585687,111.25,19.442,19.434,111.25]
[1693674585893,111.25,19.442,19.436,10.23]
[1693674586189,111.25,19.442,19.434,132.9445]
[1693674586495,111.25,19.442,19.436,10.23]
[1693674586795,111.25,19.442,19.434,132.9445]
[1693674586991,111.25,19.442,19.436,10.23]
[1693674587192,111.25,19.442,19.434,132.9445]
[1693674587392,111.25,19.442,19.436,10.23]
[1693674587589,111.25,19.442,19.434,132.9445]
[1693674587791,111.25,19.442,19.436,10.23]
[1693674588087,111.25,19.442,19.435,9.21624826]
[1693674588088,111.25,19.442,19.434,132.9445]
[1693674588290,111.25,19.442,19.436,10.23]
[1693674588492,111.25,19.442,19.434,132.9445]
[1693674588693,111.25,19.442,19.436,10.23]
[1693674588893,111.25,19.442,19.435,9.21620466]
[1693674588894,15.43,19.441,19.434,132.9445]
[1693674589097,111.25,19.442,19.436,10.23]
[1693674589295,111.25,19.442,19.434,132.9445]
[1693674589494,111.25,19.442,19.436,10.23]
[1693674589694,111.25,19.442,19.434,132.9445]
[1693674589895,111.25,19.442,19.436,10.23]
[1693674590095,111.25,19.442,19.434,132.9445]
[1693674590401,111.25,19.442,19.436,10.23]
[1693674590599,111.25,19.442,19.434,132.9445]
[1693674590797,111.25,19.442,19.436,10.23]
[1693674590995,111.25,19.442,19.434,132.9445]
[1693674591197,111.25,19.442,19.436,10.23]
[1693674591394,111.25,19.442,19.434,132.9445]
[1693674591595,111.25,19.442,19.436,10.23]
[1693674591894,111.25,19.442,19.434,174.85709639]
[1693674592097,0.45454546,19.448,19.434,174.85709639]
[1693674592098,111.25,19.441,19.435,9.21620505]
[1693674592289,111.25,19.441,19.434,63.60709639]
[1693674607108,111.25,19.443,19.436,10.24]
[1693674607412,111.25,19.446,19.439,111.25]
[1693674607803,111.25,19.446,19.441,10.24]
[1693674608813,111.25,19.443,19.44,20.7378]
[1693674611913,111.25,19.445,19.44,20.7378]
[1693674612115,111.25,19.445,19.438,111.25]
[1693674612419,111.25,19.445,19.439,29.93624998]
[1693674612717,111.25,19.445,19.44,9.21384998]
[1693674615019,111.25,19.445,19.441,10.24]
[1693674615218,111.25,19.447,19.441,10.24]
[1693674622022,111.25,19.447,19.439,131.9724]
[1693674622223,111.25,19.447,19.441,10.24]
[1693674622525,111.25,19.447,19.439,131.9724]
[1693674622725,111.25,19.447,19.441,10.24]
[1693674623025,111.25,19.447,19.439,131.9724]
[1693674623222,111.25,19.447,19.441,10.24]
[1693674623423,111.25,19.447,19.439,131.9724]
[1693674623624,111.25,19.447,19.441,10.24]
[1693674623826,111.25,19.447,19.439,131.9724]
[1693674624026,111.25,19.447,19.441,10.24]
[1693674624329,111.25,19.447,19.439,131.9724]
[1693674624530,111.25,19.447,19.441,10.24]
[1693674624733,111.25,19.447,19.439,131.9724]
[1693674625030,111.25,19.447,19.441,10.24]
[1693674625231,111.25,19.447,19.44,9.2135396]
[1693674625232,111.25,19.447,19.439,131.9724]
[1693674625525,111.25,19.447,19.441,10.24]
[1693674625825,111.25,19.447,19.439,131.9724]
[1693674626029,111.25,19.447,19.441,10.24]
[1693674626330,111.25,19.447,19.439,131.9724]
[1693674626629,111.25,19.447,19.441,10.24]
[1693674626830,111.25,19.447,19.439,131.9724]
[1693674627031,111.25,19.447,19.441,10.23]
[1693674627234,111.25,19.447,19.439,131.9724]
[1693674627530,111.25,19.447,19.441,10.23]
[1693674627731,111.25,19.447,19.439,131.9724]
[1693674627930,111.25,19.447,19.441,10.23]
[1693674628230,111.25,19.447,19.439,131.9724]
[1693674628431,111.25,19.447,19.441,10.23]
[1693674628624,111.25,19.45,19.442,111.25]
[1693674641739,111.25,19.45,19.442,153.00539567]
[1693674643533,15.43,19.449,19.442,153.00539567]
[1693674645242,15.43,19.449,19.442,111.25]
[1693674646139,111.25,19.446,19.439,131.9724]
[1693674646340,111.25,19.446,19.44,9.21364004]
[1693674646837,111.25,19.443,19.439,20.7224]
[1693674648136,111.25,19.444,19.439,20.7224]
[1693674658845,15.43,19.443,19.439,20.7224]
[1693674667954,111.25,19.444,19.439,20.7224]
[1693674670555,0.45454546,19.453,19.439,20.7224]
[1693674675548,0.45454546,19.456,19.441,10.24]
[1693674675851,0.45454546,19.456,19.439,20.7224]
[1693674676052,0.45454546,19.456,19.441,10.24]
[1693674676354,0.45454546,19.463,19.444,10.24]
[1693674676556,0.45454546,19.463,19.445,9.21394555]
[1693674677052,0.45454546,19.462,19.445,9.21394555]
[1693674677258,15.43,19.468,19.445,9.21394555]
[1693674677259,0.45454546,19.467,19.445,9.21394555]
[1693674686567,0.45454546,19.467,19.445,50.32391471]
[1693674686763,0.45454546,19.467,19.447,10.22]
[1693674686959,0.45454546,19.467,19.449,10.22]
[1693674687158,0.45454546,19.467,19.447,21.8342]
[1693674687362,0.45454546,19.467,19.449,10.22]
[1693674687557,0.45454546,19.467,19.447,21.8342]
[1693674687762,0.45454546,19.467,19.449,10.22]
[1693674688058,0.45454546,19.467,19.447,21.8342]
[1693674688261,0.45454546,19.467,19.449,10.22]
[1693674688458,0.45454546,19.467,19.447,21.8342]
[1693674688666,0.45454546,19.467,19.449,10.22]
[1693674688869,0.45454546,19.467,19.447,21.8342]
[1693674689071,0.45454546,19.467,19.449,10.22]
[1693674689270,0.45454546,19.467,19.447,21.8342]
[1693674689473,0.45454546,19.467,19.449,10.22]
[1693674689773,0.45454546,19.467,19.447,21.8342]
[1693674689972,0.45454546,19.467,19.449,10.22]
[1693674690170,0.45454546,19.467,19.447,21.8342]
[1693674690369,0.45454546,19.467,19.449,10.22]
[1693674690575,0.45454546,19.467,19.447,21.8342]
[1693674690770,0.45454546,19.467,19.449,10.22]
[1693674690973,0.45454546,19.467,19.447,21.8342]
[1693674691174,0.45454546,19.467,19.449,10.22]
[1693674691370,0.45454546,19.467,19.447,21.8342]
[1693674691672,15.42,19.451,19.443,1.87436665]
[1693674691872,15.42,19.441,19.434,186.39570706]
[1693674692077,15.42,19.439,19.431,21.8114]
[1693674692378,0.45454546,19.438,19.431,21.8114]
[1693674692578,0.45454546,19.437,19.431,21.8114]
[1693674692779,15.42,19.435,19.431,21.8114]
[1693674692979,0.45454546,19.434,19.431,21.8114]
[1693674693279,0.45454546,19.433,19.431,21.8114]
[1693674693477,15.42,19.449,19.431,21.8114]
[1693674693773,0.45454546,19.448,19.431,21.8114]
[1693674693979,0.45454546,19.447,19.431,21.8114]
[1693674694277,0.45454546,19.446,19.431,21.8114]
[1693674694472,210.1379856,19.451,19.431,21.8114]
[1693674694672,15.42,19.449,19.431,21.8114]
[1693674694975,0.45454546,19.448,19.431,21.8114]
[1693674695182,0.45454546,19.447,19.431,21.8114]
[1693674695380,0.45454546,19.446,19.431,21.8114]
[1693674695676,0.45454546,19.445,19.431,21.8114]
[1693674695869,15.42,19.451,19.431,21.8114]
[1693674696178,540.88888888,19.453,19.431,21.8114]
[1693674696179,15.42,19.449,19.431,21.8114]
[1693674696376,0.45454546,19.448,19.431,21.8114]
[1693674696679,0.45454546,19.447,19.431,21.8114]
[1693674696876,0.45454546,19.446,19.431,21.8114]
[1693674697081,0.45454546,19.445,19.431,21.8114]
[1693674697376,15.42,19.443,19.431,21.8114]
[1693674697578,15.42,19.451,19.431,21.8114]
[1693674697780,15.42,19.449,19.431,21.8114]
[1693674697979,0.45454546,19.448,19.431,63.91839588]
[1693674698281,0.45454546,19.447,19.431,63.91839588]
[1693674698477,0.45454546,19.446,19.431,63.91839588]
[1693674698674,0.45454546,19.445,19.431,63.91839588]
[1693674698874,15.42,19.443,19.431,63.91839588]
[1693674699079,0.45454546,19.443,19.431,63.91839588]
[1693674699279,15.42,19.451,19.431,63.91839588]
[1693674699480,15.42,19.449,19.431,63.91839588]
[1693674699680,0.45454546,19.448,19.431,63.91839588]
[1693674699876,9.90351005,19.462,19.431,63.91839588]
[1693674700073,26.14695546,19.461,19.431,63.91839588]
[1693674700284,189.79724005,19.46,19.431,63.91839588]